bitfinex-derivatives/quotes_SOLF0:USTF0_20250331
["timestamp","ask_amount","ask_price","bid_price","bid_amount"]
[1743445364791,8.04516534,125.13,125.12,30.24]
[1743445367290,7.9929,125.12,125.11,0.05222389]
[1743445367494,7.9929,125.12,125.11,30.29222389]
[1743445370000,8.04546534,125.13,125.11,30.29222389]
[1743445370703,7.9929,125.12,125.11,30.29222389]
[1743445370900,29.91493426,125.12,125.11,30.29222389]
[1743445371198,29.91493426,125.12,125.11,0.05222389]
[1743445372397,7.9955,125.08,125.04,11.411]
[1743445372597,7.9955,125.08,125.07,317.86]
[1743445373197,7.9955,125.08,125.07,287.64]
[1743445373397,0.05517683,125.09,125.07,317.86]
[1743445374403,0.05517683,125.09,125.07,325.8558]
[1743445376098,0.05517683,125.09,125.08,7.9955]
[1743445376300,21.92203426,125.14,125.07,317.86]
[1743445376900,7.9926,125.13,125.07,317.86]
[1743445377399,0.05238692,125.11,125.09,0.06098535]
[1743445377605,0.05238692,125.11,125.1,30.22]
[1743445378805,0.05238692,125.11,125.1,38.2142]
[1743445379208,21.92203426,125.17,125.1,30.22]
[1743445379402,7.9911,125.15,125.12,7.9926]
[1743445379707,21.92203426,125.17,125.13,30.22]
[1743445379902,21.92203426,125.15,125.13,30.22]
[1743445380407,7.992,125.14,125.13,30.28043549]
[1743445380606,7.992,125.14,125.13,0.06043549]
[1743445381601,21.97249732,125.15,125.13,0.06043549]
[1743445381806,29.96389732,125.15,125.13,0.06043549]
[1743445382008,0.05046306,125.15,125.14,30.22]
[1743445383008,8.04146306,125.15,125.14,30.22]
[1743445383202,0.05046306,125.15,125.14,30.22]
[1743445384104,8.04146306,125.15,125.14,30.22]
[1743445384308,29.97249732,125.15,125.09,30.22]
[1743445384508,21.92203426,125.11,125.09,30.22]
[1743445384911,21.92203426,125.11,125.07,287.64]
[1743445385109,21.92203426,125.11,125.07,317.86]
[1743445385607,7.9954,125.09,125.08,0.05501746]
[1743445385816,29.91743426,125.09,125.08,0.05501746]
[1743445386105,7.9961,125.07,125.06,33.24330382]
[1743445387106,7.9968,125.06,125.05,88.70548684]
[1743445387512,21.9829276,125.07,125.04,151.81773222]
[1743445388006,7.9972,125.06,125.03,28.26553062]
[1743445388211,21.9829276,125.07,125.02,30.22]
[1743445388814,7.998,125.05,125.03,0.05474876]
[1743445389316,7.998,125.04,125.03,0.05474876]
[1743445389714,21.92203426,125.05,125.03,0.05474876]
[1743445390114,21.9829276,125.07,125.03,0.05474876]
[1743445390313,21.9829276,125.07,125.04,30.22]
[1743445390915,0.06089334,125.07,125.04,30.22]
[1743445391716,8.05739334,125.07,125.04,30.22]
[1743445392412,7.9968,125.06,125.04,30.22]
[1743445392614,21.9829276,125.07,125.04,30.22]
[1743445393316,21.9829276,125.07,125.03,0.05474876]
[1743445393616,7.998,125.04,125.03,0.05474876]
[1743445395017,7.9976,125.05,125.03,0.05474876]
[1743445395214,21.9829276,125.07,125.03,0.05474876]
[1743445396316,7.998,125.04,125.03,0.05474876]
[1743445396617,21.9829276,125.07,125.03,0.05474876]
[1743445396816,7.998,125.04,125.03,0.05474876]
[1743445397117,21.9829276,125.07,125.03,30.29474876]
[1743445397717,7.9973,125.06,125.03,30.29474876]
[1743445398015,21.9829276,125.07,125.03,30.29474876]
[1743445398217,7.9974,125.05,125.03,30.29474876]
[1743445399812,7.998,125.04,125.03,30.29474876]
[1743445400020,7.998,125.04,125.03,0.05474876]
[1743445401820,21.92203426,125.05,124.94,287.78]
[1743445402114,21.92203426,125.01,124.95,31.66521992]
[1743445402315,8.0009,125.0,124.96,8.0029]
[1743445402714,8.0009,125.0,124.97,30.24]
[1743445402920,0.0612757,124.99,124.97,30.2921199]
[1743445404715,0.0612757,124.99,124.97,38.2945199]
[1743445404921,0.0612757,124.99,124.97,30.2921199]
[1743445405318,41.6592,125.06,124.97,30.2921199]
[1743445405319,29.92003426,125.05,125.01,7.9999]
[1743445405519,29.92003426,125.05,125.01,38.2399]
[1743445405821,21.92203426,125.03,125.01,30.24]
[1743445406020,7.9993,125.02,124.99,30.24]
[1743445406421,8.05956448,125.02,124.99,30.29337932]
[1743445406818,0.06026448,125.02,124.99,30.29337932]
[1743445408223,0.06026448,125.02,125.0,8.0]
[1743445408421,0.06026448,125.02,124.99,30.29337932]
[1743445409123,0.06026448,125.02,125.0,8.0001]
[1743445409923,0.06026448,125.02,124.99,30.29337932]
[1743445411618,8.0004,125.01,124.99,30.29337932]
[1743445412020,0.06026448,125.02,124.99,30.29337932]
[1743445412224,8.05996448,125.02,124.99,30.29337932]
[1743445412524,8.05996448,125.02,124.99,0.05337932]
[1743445412726,8.05996448,125.02,124.99,30.29337932]
[1743445413321,8.0,125.01,124.99,30.29337932]
[1743445414025,8.05986448,125.02,124.99,30.29337932]
[1743445415033,0.06026448,125.02,124.99,38.29447932]
[1743445415628,8.05986448,125.02,124.99,30.29337932]
[1743445416231,0.06026448,125.02,124.99,38.29417932]
[1743445416422,0.06026448,125.02,124.99,30.29337932]
[1743445416826,0.06026448,125.02,125.0,8.0001]
[1743445417829,0.06026448,125.02,124.99,30.29337932]
[1743445418227,0.06026448,125.02,124.99,38.29397932]
[1743445418922,0.06026448,125.02,125.0,8.0005]
[1743445419125,0.06026448,125.02,124.99,30.29337932]
[1743445419529,0.06026448,125.02,124.99,38.29427932]
[1743445419729,0.06026448,125.02,124.99,30.29337932]
[1743445420225,3.9568,125.09,124.99,30.29337932]
[1743445420426,21.92203426,125.09,124.99,52.16203426]
[1743445420730,21.92203426,125.09,125.04,7.9977]
[1743445420926,21.92203426,125.09,125.05,30.24]
[1743445421125,44.41199977,125.1,125.05,30.24]
[1743445421325,52.40649977,125.1,125.06,7.9963]
[1743445421532,0.05142299,125.09,125.06,8.04973647]
[1743445421733,0.05142299,125.09,125.06,0.05343647]
[1743445423031,0.05142299,125.09,125.06,8.05013647]
[1743445423626,0.05142299,125.09,125.07,7.9959]
[1743445423831,0.05142299,125.09,125.08,30.22]
[1743445424334,0.05142299,125.09,125.08,38.2155]
[1743445425333,7.9933,125.12,125.08,38.2155]
[1743445426232,29.91443426,125.13,125.09,7.9947]
[1743445426532,0.06146928,125.11,125.09,8.05426962]
[1743445427022,0.06146928,125.11,125.09,0.05956962]
[1743445427732,0.06146928,125.11,125.09,8.05426962]
[1743445427928,0.06146928,125.11,125.09,3.82806962]
[1743445428232,0.06146928,125.11,125.1,3.8451]
[1743445428533,21.92203426,125.17,125.1,3.8451]
[1743445428733,21.92203426,125.17,125.11,30.22]
[1743445429135,21.92203426,125.15,125.11,30.22]
[1743445429633,0.05160958,125.14,125.12,0.06064475]
[1743445430135,7.9923,125.13,125.12,0.06064475]
[1743445431032,29.91433426,125.13,125.12,0.06064475]
[1743445431234,29.91433426,125.13,125.12,0.00825783]
[1743445434739,7.9923,125.13,125.12,0.00825783]
[1743445438442,0.05160958,125.14,125.09,30.22]
[1743445439036,7.9942,125.1,125.09,30.22]
[1743445440040,7.9948,125.09,125.08,0.05099768]
[1743445444047,0.06071523,125.11,125.08,0.05099768]
[1743445444533,21.92203426,125.16,125.08,0.05099768]
[1743445444738,7.9913,125.15,125.07,52.12203426]
[1743445445143,7.9913,125.15,125.12,7.9926]
[1743445445344,7.9913,125.15,125.13,30.2]
[1743445445644,0.05853456,125.15,125.13,30.25597954]
[1743445446041,8.04993456,125.15,125.13,30.25597954]
[1743445446641,7.9916,125.14,125.13,30.25597954]
[1743445447747,8.04983456,125.15,125.13,30.25597954]
[1743445448047,0.05853456,125.15,125.13,30.25597954]
[1743445448346,0.05853456,125.15,125.13,38.24797954]
[1743445448550,0.05853456,125.15,125.13,30.25597954]
[1743445449046,0.05853456,125.15,125.13,38.24787954]
[1743445451345,8.04963456,125.15,125.13,38.24787954]
[1743445452443,7.9916,125.14,125.13,30.25597954]
[1743445453444,7.9916,125.14,125.13,0.05597954]
[1743445458348,8.04973456,125.15,125.13,0.05597954]
[1743445458553,0.05853456,125.15,125.13,0.05597954]
[1743445459555,7.9916,125.14,125.13,0.05597954]
[1743445460058,7.9945,125.1,125.09,30.18]
[1743445460556,21.92203426,125.12,125.09,30.18]
[1743445460756,7.9942,125.1,125.09,30.18]
[1743445461456,7.9948,125.09,125.08,0.05893125]
[1743445465048,21.92203426,125.1,125.04,287.62]
[1743445465250,21.92203426,125.06,125.03,30.18]
[1743445465455,7.9978,125.05,125.03,30.18]
[1743445465655,21.92203426,125.06,125.03,30.18]
[1743445465957,21.92203426,125.06,125.01,3.8217]
[1743445466160,7.9977,125.05,125.03,0.05856934]
[1743445466563,0.05070158,125.06,125.03,0.05856934]
[1743445467252,7.9937,125.11,125.03,25.9262036]
[1743445467454,21.92203426,125.12,125.08,7.9951]
[1743445467752,29.91523426,125.12,125.09,30.18]
[1743445468359,29.96953236,125.12,125.09,30.23424841]
[1743445469261,0.0542981,125.12,125.09,38.22864841]
[1743445469659,0.0542981,125.12,125.09,30.23424841]
[1743445469860,0.0542981,125.12,125.1,7.9937]
[1743445470159,0.0542981,125.12,125.09,30.23424841]
[1743445470460,0.0542981,125.12,125.1,7.9939]
[1743445470758,0.0542981,125.12,125.09,30.23424841]
[1743445471362,0.0542981,125.12,125.1,7.9942]
[1743445471561,0.0542981,125.12,125.09,30.23424841]
[1743445472659,0.0542981,125.12,125.1,7.9936]
[1743445474363,0.0542981,125.12,125.11,7.9936]
[1743445474565,21.92203426,125.16,125.09,30.23424841]
[1743445474865,7.9904,125.16,125.12,7.9924]
[1743445475066,7.9904,125.16,125.13,30.18]
[1743445475670,0.05947091,125.16,125.13,30.23910943]
[1743445476066,21.92203426,125.2,125.14,7.553]
[1743445476365,21.92203426,125.18,125.13,30.18]
[1743445477368,7.9907,125.16,125.14,0.05960013]
[1743445477571,0.05258573,125.17,125.14,0.05960013]
[1743445477866,8.04278573,125.17,125.14,0.05960013]
[1743445478170,0.05258573,125.17,125.14,0.05960013]
[1743445478472,7.9906,125.16,125.14,0.05960013]
[1743445478673,0.05258573,125.17,125.14,0.05960013]
[1743445479574,7.9906,125.16,125.14,0.05960013]
[1743445479872,0.05258573,125.17,125.14,0.05960013]
[1743445480273,7.991,125.15,125.14,0.05960013]
[1743445483172,21.92203426,125.16,125.14,0.05960013]
[1743445483362,0.05258573,125.17,125.14,0.05960013]
[1743445483773,7.991,125.15,125.14,0.05960013]
[1743445487884,7.991,125.15,125.14,1.3e-07]
[1743445488088,7.9929,125.12,125.11,30.16]
[1743445488283,21.92203426,125.13,125.07,3.8888]
[1743445488481,7.9955,125.08,125.06,287.68]
[1743445488687,21.92203426,125.09,125.06,287.68]
[1743445489190,21.97949524,125.09,125.06,0.05560922]
[1743445489385,0.05746098,125.09,125.06,0.05560922]
[1743445490185,7.9961,125.07,125.06,0.05560922]
[1743445490786,7.9959,125.08,125.06,0.05560922]
[1743445491493,8.05246098,125.09,125.06,0.05560922]
[1743445491989,21.92203426,125.08,125.06,0.05560922]
[1743445493787,29.91773426,125.08,125.06,0.05560922]
[1743445494793,21.92203426,125.08,125.06,0.05560922]
[1743445495295,29.91753426,125.08,125.06,0.05560922]
[1743445495797,7.9961,125.07,125.06,0.05560922]
[1743445495997,52.10203426,125.08,125.02,30.18]
[1743445496193,21.92203426,125.06,125.02,30.18]
[1743445496394,29.91893426,125.06,125.02,38.179]
[1743445497099,0.05964546,125.05,125.03,0.05406895]
[1743445499904,21.92203426,125.04,125.03,0.05406895]
[1743445500295,29.92003426,125.04,125.03,0.05406895]
[1743445500492,21.92203426,125.04,125.03,0.05406895]
[1743445500695,0.05964546,125.05,125.03,0.05406895]
[1743445502602,21.92203426,125.1,125.04,30.18]
[1743445502802,7.9946,125.1,125.04,30.18]
[1743445503000,21.92203426,125.12,125.04,30.18]
[1743445503300,21.92203426,125.12,125.05,3.8374]
[1743445503501,7.9942,125.11,125.07,7.9957]
[1743445503697,7.9942,125.11,125.08,30.18]
[1743445503996,0.06074211,125.1,125.08,30.23133351]
[1743445504196,7.9948,125.09,125.08,30.23133351]
[1743445504698,8.05534211,125.1,125.08,30.23133351]
[1743445505604,0.06074211,125.1,125.08,30.23133351]
[1743445506504,8.05494211,125.1,125.08,30.23133351]
[1743445506700,0.06074211,125.1,125.08,30.23133351]
[1743445507405,21.92203426,125.14,125.08,30.23133351]
[1743445507594,21.92203426,125.14,125.1,7.9939]
[1743445507800,21.92203426,125.16,125.11,30.16]
[1743445508199,7.9921,125.14,125.11,30.16]
[1743445508701,8.04374262,125.14,125.11,30.21198039]
[1743445509198,0.05164262,125.14,125.11,30.21198039]
[1743445509404,21.92203426,125.12,125.11,0.05198039]
[1743445509799,29.91493426,125.12,125.11,0.05198039]
[1743445511807,21.92203426,125.12,125.11,0.05198039]
[1743445512407,29.91493426,125.12,125.11,0.05198039]
[1743445515306,21.92203426,125.12,125.05,3.8374]
[1743445515509,21.92203426,125.07,125.02,317.94]
[1743445515702,21.92203426,125.05,125.02,30.16]
[1743445515908,21.92203426,125.05,125.01,30.16]
[1743445516208,7.999,125.03,125.01,30.16]
[1743445516408,21.92203426,125.07,125.01,30.16]
[1743445516610,0.05921405,125.03,125.01,30.21762194]
[1743445516806,7.9965,125.07,125.02,3.9335]
[1743445517109,21.92203426,125.09,125.02,3.9335]
[1743445517310,7.9959,125.08,125.04,7.9977]
[1743445517511,7.9959,125.08,125.05,30.16]
[1743445517812,8.04030896,125.08,125.05,30.2203272]
[1743445518704,0.04440896,125.08,125.05,30.2203272]
[1743445519109,0.04440896,125.08,125.06,7.9964]
[1743445519312,7.9941,125.11,125.05,30.2203272]
[1743445519613,21.92203426,125.13,125.05,30.2203272]
[1743445519804,21.92203426,125.13,125.05,30.16]
[1743445520010,7.9948,125.1,125.05,30.16]
[1743445520312,21.92203426,125.11,125.05,30.16]
[1743445520609,21.92203426,125.11,125.06,0.05813906]
[1743445520810,21.92203426,125.09,125.06,0.05813906]
[1743445521011,21.92203426,125.09,125.05,30.16]
[1743445521210,21.92203426,125.09,125.06,0.05580205]
[1743445522011,21.92203426,125.07,125.06,0.05580205]
[1743445522212,29.91813426,125.07,125.06,0.05580205]
[1743445525314,29.91813426,125.07,125.06,2.05e-06]
[1743445525514,21.92203426,125.07,125.01,30.16]
[1743445525717,21.92203426,125.05,125.01,30.16]
[1743445525907,7.9982,125.04,125.01,30.16]
[1743445526616,8.05400205,125.04,125.01,0.05753009]
[1743445526916,0.05580205,125.04,125.03,7.9987]
[1743445527109,21.92203426,125.09,125.01,59.86576435]
[1743445527310,7.9967,125.07,125.01,59.80823426]
[1743445527510,21.92203426,125.09,125.03,7.9982]
[1743445527707,21.92203426,125.09,125.04,30.16]
[1743445528011,7.9964,125.07,125.04,38.158]
[1743445528211,7.9964,125.07,125.05,0.05372896]
[1743445528712,7.9958,125.08,125.05,0.05372896]
[1743445528913,21.92203426,125.09,125.05,0.05372896]
[1743445529308,7.9956,125.08,125.05,0.05372896]
[1743445529613,21.92203426,125.09,125.05,0.05372896]
[1743445529817,7.9968,125.06,125.05,0.05372896]
[1743445530214,7.9968,125.06,125.01,7.7262]
[1743445530215,21.92203426,125.07,125.01,7.7262]
[1743445530420,7.9984,125.04,125.01,37.8862]
[1743445530920,7.9989,125.03,125.01,30.16]
[1743445531513,7.9993,125.02,125.01,0.05905222]
[1743445531914,0.05372896,125.03,125.01,0.05905222]
[1743445534520,0.05372896,125.03,125.01,8.05875222]
[1743445534825,0.05372896,125.03,125.01,0.05905222]
[1743445535821,7.9993,125.02,125.01,0.05905222]
[1743445537118,8.05272896,125.03,125.01,0.05905222]
[1743445537320,0.05372896,125.03,125.01,0.05905222]
[1743445538023,0.05372896,125.03,125.02,7.9993]
[1743445538223,0.05372896,125.03,125.01,3.84475222]
[1743445538724,0.05372896,125.03,125.01,11.84415222]
[1743445539720,8.05272896,125.03,125.01,3.84475222]
[1743445540119,0.05372896,125.03,125.01,11.84455222]
[1743445540423,0.05372896,125.03,125.01,3.84475222]
[1743445540625,0.05372896,125.03,125.01,0.05905222]
[1743445540814,7.9993,125.02,125.01,0.05905222]
[1743445541916,8.05262896,125.03,125.01,0.05905222]
[1743445542916,0.05372896,125.03,125.02,7.9993]
[1743445543121,0.05372896,125.03,125.01,0.05905222]
[1743445543122,11.9039,125.12,125.01,0.05905222]
[1743445543324,21.92203426,125.1,125.01,5.3708241]
[1743445543519,7.9959,125.08,125.05,7.9974]
[1743445543724,21.92203426,125.1,125.06,30.16]
[1743445544231,21.92203426,125.08,125.07,0.0525129]
[1743445544431,21.92203426,125.08,125.04,30.16]
[1743445544626,7.9963,125.07,125.04,30.16]
[1743445545026,7.9963,125.07,125.0,3.9795]
[1743445545027,21.92203426,125.06,125.0,3.9795]
[1743445545224,21.92203426,125.04,125.01,30.16]
[1743445545429,21.92203426,125.02,125.0,30.16]
[1743445545729,21.97454716,125.04,125.01,8.06026682]
[1743445546629,21.97454716,125.04,125.01,0.06056682]
[1743445547037,29.97264716,125.04,125.01,8.06026682]
[1743445548333,21.97454716,125.04,125.01,0.06056682]
[1743445548531,21.92203426,125.02,125.01,0.06056682]
[1743445549330,43.84406852,125.02,124.97,317.92]
[1743445549534,21.92203426,124.98,124.93,4.0993]
[1743445549732,21.92203426,124.98,124.93,34.2593]
[1743445550037,29.92393426,124.98,124.93,42.264]
[1743445550239,0.0603315,124.97,124.94,0.05884986]
[1743445550636,8.0629315,124.97,124.94,0.05884986]
[1743445550836,0.0603315,124.97,124.95,30.16]
[1743445553033,21.92203426,125.02,124.95,30.16]
[1743445553537,8.0006,125.0,124.97,8.0022]
[1743445553739,8.0006,125.0,124.98,30.16]
[1743445554241,8.0006,125.0,124.98,30.21409679]
[1743445554242,8.05105516,125.0,124.98,30.21409679]
[1743445554940,0.05045516,125.0,124.98,38.21589679]
[1743445557938,8.05105516,125.0,124.98,30.21409679]
[1743445558433,0.05045516,125.0,124.98,30.21409679]
[1743445558640,0.05045516,125.0,124.98,38.21589679]
[1743445559639,0.05045516,125.0,124.98,30.21409679]
[1743445559640,8.05125516,125.0,124.98,30.21409679]
[1743445561132,8.0012,124.99,124.98,30.21409679]
[1743445561333,8.0012,124.99,124.98,0.05409679]
[1743445564140,8.0034,124.96,124.93,4.0993]
[1743445564340,21.92203426,124.97,124.94,30.14]
[1743445564736,29.92493426,124.97,124.93,4.0993]
[1743445564931,8.0029,124.97,124.94,30.14]
[1743445565341,8.0029,124.97,124.94,38.19632312]
[1743445565342,8.05511168,124.97,124.94,38.19632312]
[1743445566640,8.0032,124.96,124.94,38.19632312]
[1743445567043,8.05511168,124.97,124.94,38.19632312]
[1743445567344,8.05511168,124.97,124.95,8.0037]
[1743445567742,8.05511168,124.97,124.94,30.19222312]
[1743445567944,8.05511168,124.97,124.94,38.19632312]
[1743445568947,0.05221168,124.97,124.94,30.19222312]
[1743445569139,21.92203426,125.01,124.94,30.19222312]
[1743445569445,21.92203426,125.01,124.97,8.0021]
[1743445569640,21.92203426,125.01,124.98,30.14]
[1743445570443,21.97666759,125.01,124.98,30.19676767]
[1743445571346,8.0009,125.0,124.98,30.19676767]
[1743445573043,21.97666759,125.01,124.98,30.19676767]
[1743445575747,8.0011,125.0,124.98,30.19676767]
[1743445575944,21.97666759,125.01,124.98,30.19676767]
[1743445576150,0.05463333,125.01,124.98,30.19676767]
[1743445576950,8.05493333,125.01,124.98,30.19676767]
[1743445577152,0.05463333,125.01,124.98,30.19676767]
[1743445577450,0.05463333,125.01,124.98,38.19826767]
[1743445577654,0.05463333,125.01,124.98,30.19676767]
[1743445578056,0.05463333,125.01,124.99,8.0012]
[1743445578260,0.05463333,125.01,124.98,30.19676767]
[1743445578452,7.9983,125.04,125.01,7.9996]
[1743445578649,25.68563426,125.07,125.02,30.14]
[1743445579049,7.9979,125.05,125.02,38.139]
[1743445579660,7.9979,125.05,125.02,38.19199316]
[1743445579854,7.9981,125.04,125.02,30.19299316]
[1743445582658,7.9987,125.03,125.02,30.19299316]
[1743445583759,29.92073426,125.03,125.02,30.19299316]
[1743445583957,29.92073426,125.03,125.02,0.05299316]
[1743445585157,21.92203426,125.03,125.02,0.05299316]
[1743445585556,21.92203426,125.05,125.02,0.05299316]
[1743445585753,29.91973426,125.05,125.02,0.05299316]
[1743445586363,7.9982,125.04,125.02,0.05299316]
[1743445586661,21.92203426,125.05,125.02,0.05299316]
[1743445587056,7.9987,125.03,125.02,0.05299316]
[1743445587252,29.92073426,125.03,125.02,0.05299316]
[1743445589164,7.9999,125.01,125.0,30.12]
[1743445589565,21.92203426,125.03,124.98,30.12]
[1743445589961,7.9996,125.02,124.98,38.1213]
[1743445590361,0.05299316,125.01,124.99,0.05516896]
[1743445592065,8.0006,125.0,124.99,0.05516896]
[1743445592270,0.05299316,125.01,124.99,0.05516896]
[1743445592766,8.05329316,125.01,124.99,0.05516896]
[1743445592969,21.97502742,125.01,124.99,0.05516896]
[1743445593465,29.97532742,125.01,124.99,0.05516896]
[1743445593865,21.97502742,125.01,124.99,0.05516896]
[1743445594071,21.97502742,125.01,124.94,8.0041]
[1743445594261,21.92203426,124.99,124.95,30.12]
[1743445594458,21.92203426,124.97,124.94,30.12]
[1743445594663,8.0036,124.96,124.93,30.12]
[1743445594859,21.92203426,124.97,124.93,30.12]
[1743445595063,21.92203426,124.97,124.91,295.7395]
[1743445595064,8.0041,124.95,124.91,295.7395]
[1743445595264,0.05078741,124.96,124.94,0.05632878]
[1743445595664,8.05428741,124.96,124.94,0.05632878]
[1743445595867,0.05078741,124.96,124.94,0.05632878]
[1743445596167,8.0038,124.95,124.94,0.05632878]
[1743445596369,0.05078741,124.96,124.94,0.05632878]
[1743445596960,8.05418741,124.96,124.94,0.05632878]
[1743445597166,0.05078741,124.96,124.94,0.05632878]
[1743445600471,0.05078741,124.96,124.95,8.0038]
[1743445601165,21.92203426,125.03,124.95,8.0]
[1743445601371,44.41199977,125.04,124.96,52.04203426]
[1743445601672,44.41199977,125.04,125.01,7.9995]
[1743445601866,44.41199977,125.04,125.02,30.12]
[1743445602071,66.33403403,125.05,125.02,30.12]
[1743445602267,0.05737471,125.04,125.02,38.17271812]
[1743445602473,0.05737471,125.04,125.02,30.17381812]
[1743445603677,0.05737471,125.04,125.02,38.17311812]
[1743445604077,0.05737471,125.04,125.02,30.17381812]
[1743445605078,0.05737471,125.04,125.02,38.17311812]
[1743445606986,21.92203426,125.09,125.02,30.17381812]
[1743445607275,21.92203426,125.11,125.03,3.7658]
[1743445607469,21.92203426,125.11,125.07,7.9958]
[1743445607673,21.92203426,125.11,125.07,30.12]
[1743445608280,21.92203426,125.11,125.08,0.05603214]
[1743445608881,29.91583426,125.11,125.08,0.05603214]
[1743445610086,7.9943,125.1,125.08,0.05603214]
[1743445611887,29.91593426,125.11,125.08,0.05603214]
[1743445612284,7.9942,125.1,125.08,0.05603214]
[1743445612484,21.92203426,125.11,125.08,0.05603214]
[1743445612686,21.92203426,125.09,125.08,0.05603214]
[1743445612880,21.92203426,125.09,125.07,30.12]
[1743445612881,21.92203426,125.09,125.03,11.793]
[1743445613183,21.92203426,125.07,125.04,30.1]
[1743445613686,21.92203426,125.09,125.04,38.098]
[1743445613984,21.92203426,125.09,125.04,30.1]
[1743445614190,0.0559365,125.08,125.05,0.05288938]
[1743445614790,8.0519365,125.08,125.05,0.05288938]
[1743445615990,0.0559365,125.08,125.05,8.05018938]
[1743445616485,0.0559365,125.08,125.05,0.05288938]
[1743445616789,21.92203426,125.13,125.05,0.05288938]
[1743445616985,7.9936,125.11,125.08,7.9951]
[1743445617189,21.92203426,125.13,125.09,30.1]
[1743445617686,7.9931,125.12,125.09,38.0945]
[1743445617893,21.92203426,125.15,125.09,30.1]
[1743445618286,7.9929,125.12,125.11,0.05227381]
[1743445623391,21.92203426,125.13,125.09,30.1]
[1743445623692,52.02203426,125.16,125.04,287.8]
[1743445623693,21.92203426,125.11,125.07,30.08]
[1743445624296,7.9947,125.1,125.07,30.08]
[1743445624495,8.04706945,125.1,125.08,0.05751108]
[1743445624801,0.05236945,125.1,125.08,0.05751108]
[1743445625396,0.05236945,125.1,125.09,7.9948]
[1743445625596,0.05236945,125.1,125.08,0.05751108]
[1743445626298,21.92203426,125.15,125.08,0.05751108]
[1743445626510,21.92203426,125.15,125.08,8.003]
[1743445627596,21.92203426,125.15,125.1,0.05397963]
[1743445627794,21.92203426,125.15,125.1,30.13397963]
[1743445629199,7.9932,125.12,125.1,30.13397963]
[1743445629507,21.92203426,125.13,125.1,30.13397963]
[1743445629699,21.92203426,125.13,125.08,8.003]
[1743445630003,21.92203426,125.11,125.1,0.05577766]
[1743445630402,29.91563426,125.11,125.1,0.05577766]
[1743445633608,21.92203426,125.13,125.1,0.05577766]
[1743445633814,21.92203426,125.13,125.1,8.04967766]
[1743445634008,29.91483426,125.13,125.1,8.04967766]
[1743445634209,21.92203426,125.13,125.1,8.04967766]
[1743445634606,21.92203426,125.15,125.11,30.08]
[1743445635112,21.92203426,125.15,125.12,0.05363604]
[1743445635310,7.992,125.14,125.12,0.05363604]
[1743445635806,21.92203426,125.15,125.12,0.05363604]
[1743445637007,21.92203426,125.13,125.12,0.05363604]
[1743445638815,29.91433426,125.13,125.12,0.05363604]
[1743445640913,21.92203426,125.15,125.12,0.05363604]
[1743445641513,29.91363426,125.15,125.12,0.05363604]
[1743445641913,21.92203426,125.15,125.12,0.05363604]
[1743445642212,7.9919,125.14,125.12,0.05363604]
[1743445642816,21.92203426,125.15,125.12,0.05363604]
[1743445643416,21.92203426,125.13,125.12,0.05363604]
[1743445644014,29.91433426,125.13,125.12,0.05363604]
[1743445644216,21.92203426,125.13,125.1,30.06]
[1743445645415,7.9936,125.11,125.1,30.11329332]
[1743445646113,7.9936,125.11,125.1,0.05329332]
[1743445646319,29.91563426,125.11,125.1,0.05329332]
[1743445647118,21.92203426,125.11,125.1,0.05329332]
[1743445647308,0.05363604,125.13,125.1,0.05329332]
[1743445647713,0.05363604,125.13,125.11,7.9933]
[1743445647914,0.05363604,125.13,125.12,30.06]
[1743445648922,8.04593604,125.13,125.12,30.06]
[1743445650121,29.9679703,125.13,125.12,30.06]
[1743445650321,7.9936,125.11,125.1,30.11329332]
[1743445650523,7.9936,125.11,125.1,0.05329332]
[1743445651223,21.9756703,125.13,125.1,0.05329332]
[1743445651522,21.9756703,125.13,125.11,30.06]
[1743445651722,7.9929,125.12,125.11,30.06]
[1743445652023,0.05363604,125.13,125.11,30.06]
[1743445652716,21.9756703,125.13,125.11,30.06]
[1743445653016,7.9929,125.12,125.11,30.06]
[1743445653212,21.9756703,125.13,125.11,30.06]
[1743445654222,7.9929,125.12,125.11,30.06]
[1743445655323,7.9936,125.11,125.1,0.05329332]
[1743445657724,29.91563426,125.11,125.1,0.05329332]
[1743445658225,21.92203426,125.11,125.05,4.0853]
[1743445658419,21.92203426,125.11,125.07,30.06]
[1743445658927,7.9951,125.09,125.07,30.06]
[1743445659320,8.05061874,125.09,125.07,30.12051137]
[1743445659724,0.05551874,125.09,125.07,30.12051137]